bitfinex-derivatives/quotes_ETHF0:USTF0_20250730
["timestamp","ask_amount","ask_price","bid_price","bid_amount"]
[1753833600292,1.8288,3794.5,3794.4,2.2424]
[1753833601480,3.657,3795.0,3794.4,1.4306]
[1753833601679,1.2551,3794.9,3794.8,1.86]
[1753833601879,6.52595611,3794.9,3794.8,1.86]
[1753833604176,5.79795611,3794.9,3794.8,1.86]
[1753833604377,5.97235611,3794.9,3794.8,2.2447]
[1753833604682,6.52595611,3794.9,3794.8,2.2447]
[1753833604883,6.52595611,3794.9,3794.8,1.86]
[1753833605587,1.2551,3794.9,3794.8,1.86]
[1753833605986,1.2551,3794.9,3794.8,0.8537]
[1753833606285,1.2551,3794.7,3794.6,1.5901]
[1753833606489,0.52719,3794.3,3794.2,0.5137]
[1753833606685,1.78229,3794.3,3794.2,1.5901]
[1753833607179,1.78229,3794.3,3794.2,1.86]
[1753833607180,1.2551,3794.3,3794.2,1.86]
[1753833608685,6.52623395,3794.3,3794.2,1.86]
[1753833610183,5.72033395,3794.3,3793.7,3.2078]
[1753833610385,0.2523,3793.3,3793.2,5.4525]
[1753833610588,0.7015,3793.6,3793.5,0.9192]
[1753833610882,1.8047,3793.6,3793.5,1.86]
[1753833612081,2.33198,3793.6,3793.5,1.86]
[1753833614394,2.33198,3793.6,3793.5,2.2379]
[1753833614687,2.33198,3793.6,3793.5,1.86]
[1753833614891,2.33198,3793.6,3793.5,1.5901]
[1753833615079,0.2705,3793.0,3792.9,1.4125]
[1753833615285,0.2705,3793.0,3792.9,2.2402]
[1753833615286,1.5536,3793.0,3792.9,2.2402]
[1753833615691,2.08096,3793.0,3792.9,2.2402]
[1753833616192,2.32766,3793.0,3792.9,1.8623]
[1753833616391,2.32766,3793.0,3792.9,1.5283]
[1753833616691,2.32766,3793.0,3792.9,2.2402]
[1753833617186,0.6707,3793.0,3792.9,2.76758]
[1753833617892,0.52734,3793.2,3793.1,2.2402]
[1753833618695,0.92754,3793.2,3793.1,2.2402]
[1753833619893,0.4002,3793.7,3793.1,0.8805]
[1753833620088,0.52731,3793.4,3793.3,2.2402]
[1753833620689,0.4002,3793.4,3793.3,2.2402]
[1753833621192,0.5273,3793.5,3793.3,0.8805]
[1753833621394,0.4002,3793.7,3793.4,2.2402]
[1753833621695,0.52723,3794.0,3793.9,1.3597]
[1753833621990,0.92742,3794.1,3793.9,1.3303]
[1753833622196,4.30265,3794.5,3794.4,0.8805]
[1753833622393,0.1542,3794.4,3793.6,0.9099]
[1753833622693,1.49586,3793.8,3793.7,1.8623]
[1753833622995,2.32756,3793.8,3793.7,1.8623]
[1753833623194,1.8003,3793.8,3793.7,1.8623]
[1753833623390,0.5272,3794.2,3794.1,0.8805]
[1753833623590,0.5272,3794.2,3794.1,2.2402]
[1753833623898,1.1979,3794.2,3794.1,2.2402]
[1753833624099,1.6294,3794.2,3794.1,2.2402]
[1753833624397,1.1022,3794.2,3794.1,2.2402]
[1753833624592,0.6707,3794.2,3794.1,2.2402]
[1753833624995,0.4002,3794.2,3794.1,2.2402]
[1753833625990,0.52719,3794.3,3794.2,1.3597]
[1753833626296,0.4002,3794.3,3794.2,2.2402]
[1753833626484,1.62935,3794.6,3794.5,2.2402]
[1753833626691,0.4002,3794.6,3794.5,2.2402]
[1753833626895,0.52712,3794.8,3794.7,0.8805]
[1753833627092,0.92732,3794.8,3794.7,2.2402]
[1753833627293,1.19782,3794.8,3794.7,2.2402]
[1753833628292,1.62932,3794.8,3794.7,2.2402]
[1753833628990,0.1542,3795.1,3795.0,1.8623]
[1753833628991,0.2705,3795.1,3795.0,1.8623]
[1753833629193,1.22517,3795.2,3795.1,1.6075]
[1753833629488,1.49567,3795.2,3795.1,1.6075]
[1753833629694,2.32737,3795.2,3795.1,1.6075]
[1753833632000,2.32737,3795.2,3795.1,1.8623]
[1753833633303,2.32737,3795.2,3795.1,1.4125]
[1753833633502,2.17317,3795.2,3795.1,2.2402]
[1753833633891,2.32737,3795.2,3795.1,2.2402]
[1753833638005,2.17317,3795.2,3795.1,2.2402]
[1753833638405,1.6461,3795.2,3795.1,2.2402]
[1753833638603,3.2078,3795.4,3795.1,2.2402]
[1753833638904,21.7097,3795.6,3795.5,0.8805]
[1753833639107,21.7097,3795.6,3795.5,2.2402]
[1753833639706,0.6707,3795.6,3795.5,2.2402]
[1753833639908,1.1022,3795.6,3795.5,2.2402]
[1753833640506,0.2972,3795.0,3794.9,0.9818]
[1753833640699,1.8003,3795.0,3794.9,1.8623]
[1753833641498,1.8003,3795.0,3794.9,2.3894]
[1753833641898,0.4002,3795.0,3794.9,2.7673]
[1753833642105,0.6707,3795.2,3795.1,0.8805]
[1753833642304,0.6707,3795.2,3795.1,2.2402]
[1753833642506,1.3994,3795.2,3795.1,2.2402]
[1753833642811,1.5536,3795.2,3795.1,2.2402]
[1753833643001,22.8363,3795.2,3795.1,1.8623]
[1753833643203,1.8003,3795.2,3795.1,1.8623]
[1753833643404,22.8363,3795.2,3795.1,1.8623]
[1753833644316,1.7606,3794.7,3794.6,1.3305]
[1753833644610,1.7606,3794.7,3794.6,1.6007]
[1753833645006,1.7606,3794.7,3794.6,1.8634]
[1753833645410,0.6409,3794.7,3794.6,2.2526]
[1753833646208,0.3844,3794.7,3794.6,2.2526]
[1753833646408,4.8329,3795.4,3795.3,1.8634]
[1753833646604,4.9684,3795.4,3795.3,1.8634]
[1753833647315,4.8329,3795.4,3795.3,1.8634]
[1753833647712,4.9684,3795.4,3795.3,1.8634]
[1753833648617,4.9684,3795.4,3795.3,2.2526]
[1753833649214,4.9684,3795.4,3795.3,1.8634]
[1753833649713,4.1849,3795.4,3794.2,0.5329]
[1753833650011,2.28774,3794.6,3794.5,3.5342]
[1753833650217,2.28777,3794.4,3794.3,0.2824]
[1753833650406,1.7606,3794.2,3794.1,6.4157]
[1753833650606,0.919,3793.9,3793.8,3.30857477]
[1753833650812,2.28784,3793.9,3793.8,0.5329]
[1753833651106,1.7606,3793.9,3793.8,0.8593]
[1753833651312,1.7606,3793.9,3793.8,1.1417]
[1753833651513,1.7606,3793.9,3793.8,1.6007]
[1753833653321,1.7606,3793.9,3793.8,1.8634]
[1753833654520,1.7606,3793.9,3793.8,2.39065]
[1753833654723,1.4084,3793.9,3793.8,1.0041]
[1753833654921,1.6251,3793.9,3793.8,1.8634]
[1753833655220,1.7606,3793.9,3793.8,1.8634]
[1753833655922,2.28784,3793.9,3793.8,1.6007]
[1753833656215,2.28784,3793.9,3793.8,1.1417]
[1753833657623,2.28784,3793.9,3793.8,1.6007]
[1753833658015,2.28784,3793.9,3793.8,1.8634]
[1753833658822,2.28784,3793.9,3793.8,0.8593]
[1753833659119,2.28784,3793.9,3793.8,0.5329]
[1753833659320,1.72108,3793.7,3793.6,0.8593]
[1753833659521,2.28788,3793.7,3793.6,0.8593]
[1753833659718,2.28788,3793.7,3793.6,1.6007]
[1753833660110,2.28788,3793.7,3793.6,1.8634]
[1753833660523,1.7606,3793.7,3793.6,1.8634]
[1753833660819,3.2078,3794.2,3793.4,3.597]
[1753833660820,1.62533,3794.0,3793.9,2.2526]
[1753833661023,22.66233,3794.0,3793.9,2.2526]
[1753833661419,22.1351,3794.0,3793.9,2.2526]
[1753833662412,22.4454,3794.0,3793.9,2.2526]
[1753833662616,22.4454,3794.0,3793.9,1.8634]
[1753833662617,22.7976,3794.0,3793.9,1.8634]
[1753833664814,28.06915075,3794.0,3793.9,0.8593]
[1753833665019,2.1731,3792.9,3792.8,0.8715]
[1753833665718,0.9757,3792.9,3792.8,0.6088]
[1753833665921,2.1731,3792.9,3792.8,1.0678]
[1753833666319,2.1731,3792.9,3792.8,0.6088]
[1753833666624,2.1731,3792.9,3792.8,0.2824]
[1753833666820,2.1731,3792.9,3792.6,3.2078]
[1753833667025,0.9016,3792.7,3792.6,4.85721]
[1753833667220,2.1731,3792.7,3792.6,5.0712]
[1753833667426,23.2091,3792.7,3792.6,3.2078]
[1753833667626,23.2091,3792.7,3792.6,4.2756]
[1753833667821,23.2091,3792.7,3792.6,4.5383]
[1753833668126,23.2091,3792.7,3792.6,5.0712]
[1753833668720,23.2091,3792.7,3792.2,3.2262587]
[1753833668721,0.52742,3792.6,3792.2,3.2262587]
[1753833668927,1.8628,3792.3,3792.2,6.0063287]
[1753833669424,2.1731,3792.3,3792.2,5.6171287]
[1753833669620,1.286,3792.3,3792.2,3.5086587]
[1753833669820,2.1731,3792.3,3792.2,5.0896587]
[1753833670019,1.4814,3792.3,3792.2,5.4788587]
[1753833670221,0.9757,3792.3,3792.2,5.4788587]
[1753833670715,1.4814,3792.3,3792.2,5.4788587]
[1753833671124,0.6409,3792.3,3792.2,6.0063287]
[1753833671329,1.8628,3792.6,3792.5,2.39083]
[1753833671529,1.8628,3792.6,3792.5,2.78003]
[1753833671530,22.9008,3792.6,3792.5,2.78003]
[1753833672028,22.9008,3792.6,3792.5,2.2526]
[1753833672224,2.39026,3792.3,3792.2,0.0184587]
[1753833672424,2.70056,3792.3,3792.2,0.0184587]
[1753833672732,2.1731,3792.3,3792.2,0.0184587]
[1753833675524,7.4470139,3792.3,3792.2,0.0184587]
[1753833677535,2.0928,3791.9,3791.8,0.1951554]
[1753833677725,26.3416,3791.9,3791.8,0.1951554]
[1753833681431,26.3416,3791.9,3791.8,1.5008554]
[1753833681733,24.2518,3791.9,3791.8,2.3914554]
[1753833682832,3.2078,3792.5,3792.4,1.40615]
[1753833683037,24.2518,3792.5,3792.4,2.72375]
[1753833683333,24.6229,3792.5,3792.4,2.72375]
[1753833683533,21.6727,3792.5,3792.4,2.72375]
[1753833683832,0.52745,3792.4,3792.0,0.427]
[1753833684025,21.8917,3792.5,3792.0,0.427]
[1753833684026,2.62029,3792.1,3792.0,1.8004]
[1753833684228,23.66829,3792.1,3792.0,0.2995]
[1753833684631,2.25722,3791.9,3791.8,0.1951554]
[1753833684927,2.62032,3791.9,3791.8,0.1951554]
[1753833685635,2.0928,3791.9,3791.8,0.1951554]
[1753833685934,7.36727024,3791.9,3791.8,0.1951554]
[1753833686828,0.2874,3791.2,3791.1,3.5073]
[1753833687030,2.0928,3791.2,3791.1,5.0082]
[1753833687229,1.4423,3791.2,3791.1,2.1963]
[1753833688236,0.9607,3791.2,3791.1,2.1963]
[1753833689833,21.051,3791.3,3791.2,0.52761]
[1753833690035,0.3681,3791.6,3791.5,0.52757]
[1753833690234,0.8447,3791.8,3791.5,0.52757]
[1753833690235,0.6257,3791.8,3791.7,2.72384]
[1753833690439,0.4816,3792.2,3792.1,2.1963]
[1753833690440,1.1847,3792.2,3792.1,2.1963]
[1753833690648,22.4973,3792.2,3792.1,2.1963]
[1753833690837,27.77274412,3792.2,3792.1,2.1963]
[1753833691037,5.27544412,3792.2,3792.1,2.1963]
[1753833691232,0.9607,3792.4,3792.3,2.72375]
[1753833691433,21.059,3792.4,3792.3,2.72375]
[1753833692138,0.3681,3792.6,3792.3,1.40615]
[1753833692443,0.3681,3792.6,3792.5,2.72373]
[1753833692638,1.7297,3792.6,3792.5,2.72373]
[1753833692838,2.0928,3792.6,3792.5,0.52743]
[1753833693046,2.0928,3792.6,3792.5,0.82693]
[1753833693236,2.0928,3792.6,3792.5,1.58473]
[1753833694137,2.0928,3792.6,3792.5,2.07943]
[1753833694343,2.0928,3792.6,3792.5,2.32783]
[1753833694542,2.0928,3792.6,3792.5,1.8004]
[1753833694747,2.0928,3792.1,3792.0,1.3057]
[1753833694935,23.1618,3792.1,3792.0,1.3057]
[1753833695444,23.1618,3792.1,3792.0,1.8004]
[1753833697339,23.1618,3792.1,3792.0,0.8255]
[1753833697542,2.0928,3792.0,3791.9,1.8004]
[1753833697747,2.6203,3792.0,3791.9,1.8004]
[1753833697946,7.04979205,3792.0,3791.9,0.6303]
[1753833698150,7.89449205,3792.0,3791.9,0.6303]
[1753833698642,2.25226,3791.6,3791.5,1.8004]
[1753833698836,5.82816,3791.6,3791.5,1.8004]
[1753833699853,5.3006,3791.6,3791.5,2.72387]
[1753833700146,4.1685,3791.6,3791.5,2.1963]
[1753833700643,5.3006,3791.6,3791.5,2.1963]
[1753833700850,5.3006,3791.6,3791.5,1.8004]
[1753833701249,5.3006,3791.6,3791.5,2.1963]
[1753833702049,2.0928,3791.6,3791.5,2.1963]
[1753833702843,0.3681,3791.6,3791.5,2.1963]
[1753833703045,21.062,3791.8,3791.5,0.8787]
[1753833703347,21.4301,3791.8,3791.7,0.8787]
[1753833703549,21.4301,3791.8,3791.7,2.1963]
[1753833704947,23.2106,3791.8,3791.7,2.1963]
[1753833705455,23.2106,3791.8,3791.7,1.8004]
[1753833709152,22.38084,3791.8,3791.3,0.4802]
[1753833709357,1.42038,3791.4,3791.3,0.6373]
[1753833709655,2.30238,3791.4,3791.3,1.5821]
[1753833709855,2.65828,3791.4,3791.3,1.8242]
[1753833710554,2.1307,3791.4,3791.3,1.8242]
[1753833710852,2.1307,3791.4,3791.3,2.2083]
[1753833711056,2.65828,3791.4,3791.3,2.2083]
[1753833711549,2.65828,3791.4,3791.3,1.8242]
[1753833712754,0.52762,3791.2,3791.0,0.52763]
[1753833712960,1.42042,3791.2,3791.1,1.8242]
[1753833713158,1.42042,3791.2,3791.0,0.91173]
[1753833713159,1.42042,3791.2,3791.0,0.52763]
[1753833713361,0.5903,3790.9,3790.8,1.8242]
[1753833713555,1.8282,3790.9,3790.8,1.8242]
[1753833713859,5.27516583,3791.2,3790.5,3.2078]
[1753833713860,0.6078,3791.2,3791.1,0.8794]
[1753833714161,0.6078,3791.2,3791.1,2.2083]
[1753833714559,1.8282,3791.2,3791.1,2.2083]
[1753833714962,2.1307,3791.2,3791.1,2.2083]
[1753833715366,2.1307,3791.2,3791.1,1.8242]
[1753833719066,2.1307,3791.2,3790.2,4.62793477]
[1753833719067,1.16867,3790.1,3790.0,0.8794]
[1753833719269,25.1506,3790.1,3790.0,1.8242]
[1753833719472,25.1506,3790.1,3790.0,2.2083]
[1753833719666,24.8481,3790.1,3790.0,2.2083]
[1753833719965,4.154,3790.1,3790.0,2.2083]
[1753833720164,26.4895,3790.1,3790.0,1.1175]
[1753833720371,2.1307,3789.9,3789.8,1.07465839]
[1753833720567,0.9462,3789.9,3789.8,2.40355839]
[1753833720874,21.16,3789.9,3789.8,1.60246839]
[1753833721370,21.16,3789.9,3789.8,2.93136839]
[1753833721566,0.3559,3790.7,3790.0,0.8794]
[1753833721771,3.7256,3790.8,3789.9,1.8242]
[1753833721772,0.5903,3790.0,3789.9,1.8242]
[1753833721970,22.627,3790.0,3789.9,2.2083]
[1753833722479,22.627,3790.0,3789.9,0.3]
[1753833722480,23.2937,3790.0,3789.9,0.3]
[1753833722773,23.2937,3790.0,3789.9,2.2083]
[1753833723071,22.627,3790.0,3789.9,2.2083]
[1753833723465,0.9462,3790.0,3789.9,2.2083]
[1753833723671,21.173,3790.0,3789.9,2.2083]
[1753833724374,21.173,3790.0,3789.9,2.73609]
[1753833725171,1.04559,3789.9,3789.2,0.52788]
[1753833725378,3.9279,3790.0,3789.4,1.0067]
[1753833725379,0.8928,3789.5,3789.4,1.0067]
[1753833725573,0.8928,3789.5,3789.4,1.3908]
[1753833725574,22.59665,3789.5,3789.4,1.3908]
[1753833725773,23.11445,3789.5,3789.4,1.3908]
[1753833725967,23.83455,3789.5,3789.4,1.0067]
[1753833726477,23.83455,3789.5,3789.4,0.3]
[1753833727168,23.83455,3789.5,3789.4,1.0067]
[1753833727577,0.52796,3788.7,3788.1,3.2078]
[1753833727775,1.464,3788.3,3788.2,0.9262]
[1753833728079,1.2121,3788.3,3788.2,0.9262]
[1753833728278,1.464,3788.3,3788.2,0.9262]
[1753833728680,21.238,3788.6,3788.2,0.5421]
[1753833728681,21.5764,3788.6,3788.2,0.5421]
[1753833728880,1.464,3788.5,3788.4,0.9262]
[1753833729376,2.2281,3788.5,3788.4,0.9262]
[1753833729679,1.7665,3788.5,3788.4,1.3908]
[1753833730278,1.7665,3788.5,3788.4,1.0067]
[1753833730480,2.2281,3788.5,3788.4,1.0067]
[1753833731271,0.3025,3788.2,3787.8,0.19536148]
[1753833731477,1.3353,3787.8,3787.0,0.5282]
[1753833731679,2.23842,3787.6,3787.5,0.5421]
[1753833731981,2.75622,3787.6,3787.5,0.5421]
[1753833733077,1.08255,3787.4,3787.3,0.5421]
[1753833733277,23.21555,3787.4,3787.3,1.8242]
[1753833733580,22.2258,3787.4,3787.3,2.2083]
[1753833733778,21.8874,3787.4,3787.3,2.2083]
[1753833734075,21.5849,3787.4,3787.3,2.2083]
[1753833734276,21.333,3787.4,3787.3,2.2083]
[1753833734473,22.0187,3787.8,3787.7,1.4399]
[1753833734677,3.2078,3788.6,3788.1,2.81064]
[1753833734678,1.8761,3788.2,3788.1,2.81064]
[1753833734878,22.9066,3788.2,3788.1,2.81064]
[1753833735473,23.2151,3788.2,3788.1,2.81064]
[1753833736075,21.9799,3788.2,3788.1,2.81064]
[1753833736578,22.3949,3788.2,3788.1,2.81064]
[1753833737977,0.6837,3788.5,3788.4,0.528]
[1753833738183,21.34,3788.5,3788.4,1.4479]
[1753833738680,21.34,3788.5,3788.4,2.8106]
[1753833738879,21.755,3788.5,3788.4,2.8106]
[1753833739076,22.0237,3788.5,3788.4,2.8106]
[1753833739481,22.0237,3788.5,3788.4,1.9242]
[1753833739681,22.9076,3788.5,3788.4,2.8106]
[1753833739976,23.2161,3788.5,3788.4,2.8106]
[1753833740478,1.8761,3788.5,3788.4,2.8106]
[1753833740678,1.1924,3788.5,3788.4,2.1237]
[1753833740885,1.8761,3788.5,3788.4,2.8106]
[1753833742781,1.47231,3789.1,3789.0,0.9199]
[1753833742984,23.25961,3789.1,3789.0,0.9799]
[1753833743175,2.2996,3789.1,3789.0,1.87422]
[1753833743379,23.6136,3789.1,3789.0,2.81052]
[1753833743781,2.2996,3789.1,3789.0,2.81052]
[1753833744085,23.6136,3789.1,3789.0,2.81052]
[1753833744286,23.1986,3789.1,3789.0,2.39422]
[1753833744483,23.6106,3789.1,3789.0,2.39422]
[1753833745281,2.2996,3789.1,3789.0,2.39422]
[1753833745484,1.8761,3789.1,3789.0,2.81052]
[1753833745783,0.4235,3789.4,3788.5,4.52777]
[1753833745784,2.2996,3789.4,3789.3,2.81048]
[1753833745984,23.6066,3789.4,3789.3,2.81048]
[1753833747185,23.1831,3789.4,3789.3,2.81048]
[1753833747386,1.8761,3789.4,3789.3,2.81048]
[1753833747885,3.8915,3789.6,3789.5,2.39415]
[1753833748087,3.8915,3789.6,3789.5,2.81045]
[1753833748386,1.5676,3789.6,3789.5,2.81045]
[1753833748585,1.8761,3789.6,3789.5,2.81045]
[1753833749185,1.0509,3789.6,3789.5,2.81045]
[1753833749386,1.5676,3789.6,3789.5,2.81045]
[1753833749881,1.8761,3789.6,3789.5,2.81045]
[1753833750083,1.8761,3789.6,3788.6,5.274]
[1753833750084,0.4235,3789.5,3788.7,5.274]
[1753833750283,0.9444,3788.9,3788.8,5.08205]
[1753833750482,1.3679,3788.9,3788.8,5.08205]
[1753833750689,2.2996,3788.9,3788.8,2.39425]
[1753833751487,2.2996,3789.1,3789.0,2.81052]
[1753833751691,1.8761,3789.1,3789.0,2.81052]
[1753833751889,1.0509,3789.1,3789.0,2.81052]
[1753833752290,3.2078,3789.6,3789.5,0.52785]
[1753833752491,22.4802,3789.9,3789.8,2.81041]
[1753833752786,23.3641,3789.9,3789.8,2.81041]
[1753833752991,23.7876,3789.9,3789.8,2.81041]
[1753833755888,21.488,3789.9,3789.8,2.39411]
[1753833756090,0.615,3789.9,3789.8,2.81041]
[1753833756393,2.4996,3789.9,3789.8,2.39411]
[1753833757190,0.9444,3789.5,3789.4,0.52786]
[1753833757490,1.3552,3789.4,3789.0,3.2078]
[1753833757790,1.3552,3789.0,3788.7,0.52796]
[1753833757987,2.2996,3788.8,3788.7,0.52796]
[1753833759098,0.9444,3788.4,3788.3,0.52801]
[1753833759394,1.5676,3788.4,3788.3,2.81061]
[1753833759696,1.8761,3788.8,3788.7,2.81055]
[1753833760090,2.2996,3788.8,3788.7,2.81055]
[1753833760490,2.2996,3788.8,3788.7,0.2829]
[1753833760791,0.9444,3788.7,3788.6,0.2829]
[1753833760992,1.0007,3788.5,3788.4,0.52]
[1753833761191,2.2996,3788.3,3788.2,0.52802]
[1753833761592,2.2996,3788.3,3788.2,1.08152]
[1753833762694,2.2996,3788.3,3788.2,1.87432]
[1753833762892,2.2996,3788.8,3788.7,0.52796]
[1753833763097,2.2996,3788.8,3788.7,2.81056]
[1753833763794,1.8526,3788.9,3788.8,1.9577]
[1753833764099,3.2078,3789.1,3789.0,0.9172]
[1753833764397,1.9146,3789.2,3789.1,2.8382]
[1753833765098,2.2959,3789.2,3789.1,2.8382]
[1753833765599,2.2959,3789.2,3789.1,2.4382]
[1753833767198,2.2959,3789.2,3789.1,1.3565]
[1753833768404,2.2959,3788.9,3788.8,0.83373]
[1753833769399,2.2959,3788.9,3788.5,3.2078]
[1753833769601,0.9173,3788.3,3788.2,6.5912]
[1753833769797,1.8526,3788.3,3788.2,1.3172]
[1753833770200,1.8526,3788.3,3788.2,2.3103]
[1753833771101,1.8526,3788.3,3788.2,2.83833]
[1753833771403,2.2959,3788.3,3788.2,2.83833]
[1753833772298,2.2959,3789.0,3788.9,1.88443]
[1753833772698,2.2959,3789.0,3788.9,2.43823]
[1753833775307,0.9938,3789.0,3788.9,2.83823]
[1753833775502,2.2959,3789.0,3788.9,2.83823]
[1753833775709,2.2959,3789.0,3788.9,2.43823]
[1753833777307,2.2959,3789.0,3788.9,2.83823]
[1753833777906,2.2959,3789.0,3788.9,2.43823]
[1753833778106,2.2959,3789.0,3788.9,0.83373]
[1753833778305,2.2959,3789.0,3788.9,1.53183]
[1753833778610,2.2959,3789.0,3788.9,1.88443]
[1753833778809,2.2959,3789.0,3788.9,2.43823]
[1753833781212,2.2959,3789.0,3788.9,1.0039]
[1753833781414,1.3786,3788.8,3788.5,1.27308]
[1753833781608,1.31969,3789.4,3788.3,5.274]
[1753833781609,0.8246,3788.5,3788.3,5.274]
[1753833781813,0.9173,3788.4,3788.3,5.274]
[1753833782017,2.2959,3788.4,3788.3,5.274]
[1753833782416,2.2959,3788.4,3788.3,6.6305]
[1753833782615,2.2959,3788.4,3788.3,7.5843]
[1753833783212,1.8526,3788.9,3788.8,2.43825]
[1753833783418,1.8526,3788.9,3788.8,2.83825]
[1753833784021,0.6353,3788.9,3788.8,2.83825]
[1753833784625,2.2959,3788.9,3788.8,2.83825]
[1753833786026,1.8526,3788.9,3788.8,2.83825]
[1753833786220,0.5588,3789.2,3789.1,1.4451]
[1753833786525,3.4618,3789.4,3789.3,1.44508]
[1753833786717,4.3971,3789.4,3789.3,2.39888]
[1753833787027,5.0604,3789.4,3789.3,2.83818]
[1753833787225,5.5037,3789.4,3789.3,2.83818]
[1753833787428,5.5037,3789.4,3789.3,1.9103]
[1753833787731,0.9173,3789.0,3788.9,0.7451]
[1753833787927,2.2959,3789.0,3788.9,0.83373]
[1753833788325,2.2959,3789.0,3788.9,0.83936046]
[1753833789027,2.2959,3789.0,3788.9,1.53746046]
[1753833789229,2.2959,3789.0,3788.9,1.89006046]
[1753833789419,2.2959,3789.0,3788.9,2.44386046]
[1753833790426,2.2959,3789.0,3788.9,0.00563046]
[1753833792928,2.2959,3789.0,3788.9,0.31143046]
[1753833793130,2.2959,3789.0,3788.9,0.57023046]
[1753833793930,2.2959,3789.0,3788.9,2.31903046]
[1753833794831,2.2959,3789.0,3788.9,1.93443046]
[1753833795425,1.8526,3789.0,3788.9,2.31903046]
[1753833796231,0.6353,3789.0,3788.9,2.31903046]
[1753833796431,4.0937,3789.2,3789.1,0.8856]
[1753833796633,5.4721,3789.2,3789.1,1.3508]
[1753833796834,5.4721,3789.2,3789.1,1.0139]
[1753833797132,5.4721,3789.2,3789.1,0.5487]
[1753833797330,5.4721,3789.2,3789.1,0.288]
[1753833797531,5.4721,3789.2,3789.1,0.8159]
[1753833798227,5.4721,3789.2,3789.1,0.288]
[1753833798434,5.99999,3789.2,3789.1,0.288]
[1753833798732,5.4721,3789.2,3789.1,0.288]
[1753833799235,6.0,3789.2,3788.9,0.53356046]
[1753833799429,2.2643,3789.0,3788.9,0.00563046]
[1753833800136,2.2643,3789.0,3788.9,0.53356046]
[1753833800434,2.2643,3789.0,3788.9,0.00563046]
[1753833801832,2.2643,3789.0,3788.9,1.35643046]
[1753833802235,2.2643,3789.0,3788.9,1.89913046]
[1753833803638,2.2643,3789.0,3788.9,1.01953046]
[1753833803841,2.2643,3789.0,3788.9,0.00563046]
[1753833804239,2.2643,3789.0,3788.9,0.29363046]
[1753833804442,2.2643,3789.0,3788.9,1.01953046]
[1753833804634,2.2643,3789.0,3788.9,1.35643046]
[1753833804942,2.2643,3789.0,3788.9,1.89913046]
[1753833805834,2.2643,3789.0,3788.9,2.28373046]
[1753833806136,1.8153,3789.0,3788.9,2.28373046]
[1753833806338,2.2643,3789.6,3789.5,1.8129]
[1753833806543,0.943,3789.6,3789.5,2.2781]
[1753833806845,1.8153,3789.6,3789.5,2.2781]
[1753833807139,3.2078,3789.7,3789.6,2.80594]
[1753833807140,5.0231,3789.7,3789.6,2.80594]
[1753833807341,5.4721,3789.7,3789.6,2.42134]
[1753833807543,5.4721,3789.7,3789.6,1.8935]
[1753833807844,0.2564,3789.0,3788.9,5.01156046]
[1753833808143,2.2643,3789.0,3788.9,1.41916046]
[1753833808642,2.2643,3789.0,3788.9,1.88436046]
[1753833808842,2.2643,3789.0,3788.9,2.42706046]
[1753833810345,2.2643,3789.0,3788.9,1.88436046]
[1753833812644,2.2643,3789.0,3788.9,1.35643046]
[1753833812849,2.2643,3789.0,3788.9,1.01953046]
[1753833813148,2.2643,3789.0,3788.9,0.00563046]
[1753833814151,2.2643,3788.5,3788.4,3.30492842]
[1753833814351,5.4721,3788.5,3788.4,3.30492842]
[1753833814550,1.7376,3788.3,3788.2,3.30492842]
[1753833814747,2.2643,3788.3,3788.2,3.30492842]
[1753833814943,2.2643,3788.3,3788.2,4.38165842]
[1753833815149,2.2643,3788.3,3788.2,5.18375842]
[1753833815350,2.2643,3788.3,3788.2,5.72645842]
[1753833815753,2.2643,3788.3,3788.2,2.42153]
[1753833816856,2.2643,3788.3,3788.2,1.8935]
[1753833817154,2.2643,3788.3,3788.2,1.3508]
[1753833817355,2.2643,3788.1,3788.0,3.30492842]
[1753833817554,2.2643,3788.1,3788.0,4.05812842]
[1753833817849,2.2643,3788.1,3788.0,4.65572842]
[1753833818051,2.2643,3788.1,3788.0,5.19842842]
[1753833819657,2.2643,3788.1,3788.0,1.8935]
[1753833820055,3.2078,3788.5,3787.9,3.30492842]
[1753833820258,4.5427,3788.5,3788.4,2.2781]
[1753833820555,4.5427,3788.5,3788.4,1.8935]
[1753833820758,5.4721,3788.5,3788.4,1.8935]
[1753833821057,2.2643,3788.5,3788.4,1.3508]
[1753833821854,2.2643,3788.5,3788.4,1.8935]
[1753833822050,3.6568,3788.9,3788.4,0.8856]
[1753833822358,5.0694,3788.9,3788.8,2.2781]
[1753833822760,3.4642,3788.9,3788.8,2.2781]
[1753833822955,3.9909,3788.9,3788.8,2.2781]
[1753833823162,4.7392,3788.9,3788.8,2.2781]
[1753833823457,5.0231,3788.9,3788.8,2.2781]
[1753833823653,5.4721,3788.9,3788.8,2.2781]
[1753833823855,6.00003,3788.9,3788.8,2.2781]
[1753833824259,6.00003,3788.9,3788.8,1.8935]
[1753833824859,6.00003,3788.9,3788.6,0.52797]
[1753833824860,1.41216,3788.7,3788.3,0.4296]
[1753833825062,0.8842,3788.2,3788.1,4.62674]
[1753833825361,2.1845,3788.2,3788.1,5.13964]
[1753833825551,2.1845,3788.2,3788.1,5.52804]
[1753833825755,2.1845,3788.2,3788.1,5.95764]
[1753833826562,2.1845,3788.2,3788.1,4.5283]
[1753833826861,2.1845,3788.2,3788.1,5.05634]
[1753833827061,2.1845,3788.2,3788.1,5.56924]